Workbook

Sheet Home
B1: Welkom bij Desk Supplies
B21: =IF(SUM(melding>0),"Controleer de voorraad","") -> Controleer de voorraad

Sheet Factuur in
A2: Nr. | B2: Leveranciers | C2: Productnaam | D2: Aankoopprijs | E2: Aantal | F2: Totaal EXCL. BTW | G2: Totaal INCL. BTW
A3: 1 | C3: Bureaustoel ST (standaard stoel) | D3: =IFERROR(VLOOKUP(C3,product,2,0),"") -> 33.33 | E3: 10 | F3: =IF(COUNT(D3:E4)=2,$D3*$E3,"") -> 333.3 | G3: =IF(COUNT(F3)=1,($F3*$E$20)+$F3,"") -> 403.293
A4: 2 | F4: =IF(COUNT(D4:E5)=2,$D4*$E4,"") ->  | G4: =IF(COUNT(F4)=1,($F4*$E$20)+$F4,"") -> 
A5: 3
A6: 4
A7: 5
A8: 6
A9: 7
A10: 8
A11: 9
A12: 10
A13: 11
A14: 12
A15: 13
A16: 14
A17: 15
A19: bedrag goederen exclusief BTW | C19: =SUM(F3:F17) -> 333.3
D20: BTW (+) | E20: 0.21 | F20: =C19*E20 -> 69.993
A21: totaalbedrag inclusief BTW | F21: =$C$19+$F$20 -> 403.293

Sheet Factuur uit
A2: Nr. | B2: KlantenNaam | C2: Productnaam | D2: Verkoopprijs | E2: Aantal | F2: Totaal EXCL. BTW | G2: Totaal INCL. BTW | H2: In voorraad
A3: 1 | D3: =IFERROR(VLOOKUP(C3,product,3,0),"") ->  | F3: =IF(COUNT(D3,E3)=2,$D3*$E3,"") ->  | G3: =IF(COUNT(F3)=1,($F3*$E$20)+$F3,"") ->  | H3: =IFERROR(VLOOKUP(C3,voorraden,7,0),"") -> 
A4: 2 | F4: =IF(COUNT(D4,E4)=2,$D4*$E4,"") ->  | G4: =IF(COUNT(F4)=1,($F4*$E$20)+$F4,"") -> 
A5: 3
A6: 4
A7: 5
A8: 6
A9: 7
A10: 8
A11: 9
A12: 10
A13: 11
A14: 12
A15: 13
A16: 14
A17: 15
A19: Bedrag goederen exclusief BTW | C19: =SUM(F3:F17) -> 0
D20: HK (-) | E20: 0.03 | F20: =IF(C19>500,(C19/100*3),0) -> 0
D21: FK (-) | E21: 0.02 | F21: =(C19/100)*2 -> 0 | G21: binnen de 8 dagen (niet voor particulieren)
D22: BTW (+) | E22: 0.21 | F22: =C19*E22 -> 0
A24: Totaalbedrag inclusief BTW | F24: =C19-F20+F22 -> 0

Sheet openstaande rekeningen
A2: Handelsdebiteuren:
A4: KlaCode | B4: KlaNaam | C4: Adres | D4: Gemeente | E4: Postcode | F4: Ondernemingsnummer | G4: Telefoon | H4: Fax | I4: Te Betalen
A5: 2001 | B5: Century 21 | C5: Luxemburgstraat 16 B | D5: BRUSSEL | E5: 1000 | F5: 452840243 | G5: 050/62.50.80 | H5: 050/62.50.80
A6: =$A5+1 -> 2002 | B6: AccentJobs | C6: Beversesteenweg 576 | D6: Roeselare | E6: 8800 | F6: 455069956 | G6: 051/46.05.00 | H6: 051/46.05.00
A7: =$A6+1 -> 2003 | B7: B&B Industriebouw | C7: Haltstraat 84 | D7: Overpelt | E7: 3900 | F7: 442036522 | G7: +32 (0)11 80 33 36 | H7: +32 (0)11 80 33 37
A8: =$A7+1 -> 2004 | B8: Tuinmeubelen Thooft | C8: Moortelputstraat 1 | D8: Gent | E8: B-9031 | F8: 419553704 | G8: 09/282.31.22 | H8: 09/282.31.22
A9: =$A8+1 -> 2005 | B9: Belfius Vlaamse Ardennen CVBA | C9: Nederstraat 17 | D9: Oudenaarde | E9: 9700 | F9: 459674288 | G9: 0455/33.90.90 | H9: /
A10: =$A9+1 -> 2006 | B10: Neckermann | C10: Voorstraat 36 | D10: Kortrijk | E10: 8500 | F10: 837437919 | G10: 056/21.98.17 | H10: /
A12: KlaCode | B12: KlaNaam | C12: Te Betalen
A13: 3001 | B13: Hans
A14: =$A13+1 -> 3002 | B14: Marie
A15: =$A14+1 -> 3003 | B15: Lara
A16: 3004 | B16: Jan
A17: 3005 | B17: Lander
A18: 3006 | B18: Stefaan
A19: 3007 | B19: Natalie
A20: 3008 | B20: Els
A21: 3009 | B21: Yves
A22: 3010 | B22: Stefanie
A23: 3011 | B23: Geert
A25: Schulden T.O.V. Leveranciers:
A27: LevCode | B27: LevNaam | C27: Adres | D27: Gemeente | E27: Postcode | F27: Ondernemingsnummer | G27: Telefoon | H27: Fax | I27: Te betalen
A28: 1001 | B28: I.M.B | C28: Posthoornstraat 11 | D28: Mechelen | E28: 2800 | F28: 405912336 | G28: 02/339.21.11 | H28: 02/339.34.78
A29: =$A28+1 -> 1002 | B29: Bruneau | C29: kortrijksesteenweg 140 | D29: Gent | E29: 9000 | F29: 465015822 | G29: 09/241.72.72 | H29: /
A30: 1003 | B30: OTTO OFFICE | C30: Interleuvenlaan 62 | D30: Leuven | E30: 3000 | F30: 889777931 | G30: 070/.23.40.00 | H30: 070/23.40.00
A31: 1004 | B31: Buro Market | C31: Kortrijksesteenweg 1169 | D31: Gent | E31: 9000 | F31: 862222607 | G31: 02/725.14.14 | H31: 02/725.16.16
A32: 1005 | B32: OffiSil | C32: Krasnikstraat 15 | D32: Ruislede | E32: 8755 | F32: 452228549 | G32: 051/68 69 80 | H32: 051/68 69 80
A33: 1006 | B33: Schäfer Shop | C33: Excelsiorlaan 14 | D33: Zaventem | E33: 1930 | F33: 414944620 | G33: 02/725.00.00 | H33: 02/725.00.00
A34: 1007 | B34: Tackburo | C34: kortrijksesteenweg 5 | D34: Sint-Martens-Latem | E34: 9830 | F34: 401089654 | G34: 09/225.28.15 | H34: 09/233.12.77

Sheet Klanten
A2: Ondernemers:
A4: KlaCode | B4: KlaNaam | C4: Adres | D4: Gemeente | E4: Postcode | F4: Ondernemingsnummer | G4: Telefoon | H4: Fax
A5: 2001 | B5: Century 21 | C5: Luxemburgstraat 16 B | D5: BRUSSEL | E5: 1000 | F5: 452840243 | G5: 050/62.50.80 | H5: 050/62.50.80
A6: =$A5+1 -> 2002 | B6: AccentJobs | C6: Beversesteenweg 576 | D6: Roeselare | E6: 8800 | F6: 455069956 | G6: 051/46.05.00 | H6: 051/46.05.00
A7: =$A6+1 -> 2003 | B7: B&B Industriebouw | C7: Haltstraat 84 | D7: Overpelt | E7: 3900 | F7: 442036522 | G7: +32 (0)11 80 33 36 | H7: +32 (0)11 80 33 37
A8: =$A7+1 -> 2004 | B8: Tuinmeubelen Thooft | C8: Moortelputstraat 1 | D8: Gent | E8: B-9031 | F8: 419553704 | G8: 09/282.31.22 | H8: 09/282.31.22
A9: =$A8+1 -> 2005 | B9: Belfius Vlaamse Ardennen CVBA | C9: Nederstraat 17 | D9: Oudenaarde | E9: 9700 | F9: 459674288 | G9: 0455/33.90.90 | H9: /
A10: =$A9+1 -> 2006 | B10: Neckermann | C10: Voorstraat 36 | D10: Kortrijk | E10: 8500 | F10: 837437919 | G10: 056/21.98.17 | H10: /
A11: =$A10+1 -> 2007
A12: 2008
A13: 2009
A14: 2010
A15: 2011
A16: 2012
A17: 2013
A18: 2014
A19: 2015
A20: 2016
A21: 2017
A22: 2018
A23: 2019
A24: 2020
A26: Particulieren:
A28: KlaCode | B28: KlaNaam
A29: 3001 | B29: Hans
A30: =$A29+1 -> 3002 | B30: Marie
A31: 3003 | B31: Lara
A32: 3004 | B32: Jan
A33: 3005 | B33: Lander
A34: 3006 | B34: Stefaan
A35: 3007 | B35: Natalie
A36: 3008 | B36: Els
A37: 3009 | B37: Yves
A38: 3010 | B38: Stefanie
A39: 3011 | B39: Geert
A40: 3012
A41: 3013
A42: 3014
A43: 3015
A44: 3016
A45: 3017
A46: 3018
A47: 3019
A48: =$A47+1 -> 3020
A300: Century 21
A301: AccentJobs
A302: B&B Industriebouw
A303: Tuinmeubelen Thooft
A304: Belfius Vlaamse Ardennen CVBA
A305: Neckermann
A306: Hans
A307: Marie
A308: Lara
A309: Jan
A310: Lander
A311: Stefaan
A312: Natalie
A313: Els
A314: Yves
A315: Stefanie
A316: Geert

Sheet Leveranciers
A2: Leveranciers:
A4: LevCode | B4: LevNaam | C4: Adres | D4: Gemeente | E4: Postcode | F4: Ondernemingsnummer | G4: Telefoon | H4: Fax
A5: 1001 | B5: I.M.B | C5: Posthoornstraat 11 | D5: Mechelen | E5: 2800 | F5: 405912336 | G5: 02/339.21.11 | H5: 02/339.34.78
A6: =$A5+1 -> 1002 | B6: Bruneau | C6: kortrijksesteenweg 140 | D6: Gent | E6: 9000 | F6: 465015822 | G6: 09/241.72.72 | H6: /
A7: 1003 | B7: OTTO OFFICE | C7: Interleuvenlaan 62 | D7: Leuven | E7: 3000 | F7: 889777931 | G7: 070/.23.40.00 | H7: 070/23.40.00
A8: 1004 | B8: Buro Market | C8: Kortrijksesteenweg 1169 | D8: Gent | E8: 9000 | F8: 862222607 | G8: 02/725.14.14 | H8: 02/725.16.16
A9: 1005 | B9: OffiSil | C9: Krasnikstraat 15 | D9: Ruislede | E9: 8755 | F9: 452228549 | G9: 051/68 69 80 | H9: 051/68 69 80
A10: 1006 | B10: Schäfer Shop | C10: Excelsiorlaan 14 | D10: Zaventem | E10: 1930 | F10: 414944620 | G10: 02/725.00.00 | H10: 02/725.00.00
A11: 1007 | B11: Tackburo | C11: kortrijksesteenweg 5 | D11: Sint-Martens-Latem | E11: 9830 | F11: 401089654 | G11: 09/225.28.15 | H11: 09/233.12.77

Sheet Voorraad
A2: Nr. | B2: Producten | C2: Min. Voorraad | D2: Bijbesteld | E2: Verkochte goederen | F2: inkoop | G2: verkoop | H2: Voorraad
A3: 1 | B3: Bureaustoel ST (standaard stoel) | C3: 5 | D3: =IFERROR(VLOOKUP(B3,inkoop,3,0),0)+F3 -> 20 | E3: =IFERROR(VLOOKUP(B3,verkoop,3,0),0)+G3 -> 0 | F3: 10 | G3: 0 | H3: =F3-G3 -> 10 | I3: =--(C3>H3) -> 0
A4: 2 | B4: Bureaustoel SU (super kwalitatief) | C4: 5 | D4: 0 | E4: 0 | F4: 0 | G4: 0 | H4: =F4-G4 -> 0 | I4: =--(C4>H4) -> 1
A5: 3 | B5: Bureautafel STK (standaard kwaliteit bureau klein) | C5: 3 | D5: 0 | E5: 0 | F5: 0 | G5: 0 | H5: 0 | I5: =--(C5>G5) -> 1
A6: 4 | B6: Bureautafel STG (standaard kwaliteit bureau groot) | C6: 3 | D6: 0 | E6: 0 | F6: 0 | G6: 0 | H6: 0 | I6: 1
A7: 5 | B7: Bureautafel STN (standaard kwaliteit bureau normaal) | C7: 3 | D7: 0 | E7: 0 | F7: 0 | G7: 0 | H7: 0 | I7: 1
A8: 6 | B8: Bureautafel SUK (super kwalitatief klein, 2 gaten voor oplaadbedrading, 2 kastjes, 2 lades) | C8: 3 | D8: 0 | E8: 0 | F8: 0 | G8: 0 | H8: 0 | I8: 1
A9: 7 | B9: Bureautafel SUN (super kwalitatief normaal, 3 gaten voor oplaadbedrading, 4 kastjes, 4 lades) | C9: 3 | D9: 0 | E9: 0 | F9: 0 | G9: 0 | H9: 0 | I9: 1
A10: 8 | B10: Bureautafel SUG (super kwalitatief groot, 4 gaten voor oplaadbedrading, 5 kastjes, 5 lades) | C10: 3 | D10: 0 | E10: 0 | F10: 0 | G10: 0 | H10: 0 | I10: 1
A11: 9 | B11: Archiefkast K (klein) (hoogte: 103 cm) | C11: 3 | D11: 0 | E11: 0 | F11: 0 | G11: 0 | H11: 0 | I11: 1
A12: 10 | B12: Archiefkast N (normaal) (hoogte 150cm) | C12: 3 | D12: 0 | E12: 0 | F12: 0 | G12: 0 | H12: 0 | I12: 1
A13: 11 | B13: Archiefkast G (groot) (hoogte 198 cm) | C13: 3 | D13: 0 | E13: 0 | F13: 0 | G13: 0 | H13: 0 | I13: 1
A14: 12 | B14: Sorteersysteem K (klein) (4 vakjes) | C14: 3 | D14: 0 | E14: 0 | F14: 0 | G14: 0 | H14: 0 | I14: 1
A15: 13 | B15: Sorteersysteem N (normaal) (8 vakjes) | C15: 3 | D15: 0 | E15: 0 | F15: 0 | G15: 0 | H15: 0 | I15: 1
A16: 14 | B16: Sorteersysteem G (groot) (24 vakken) | C16: 3 | D16: 0 | E16: 0 | F16: 0 | G16: 0 | H16: 0 | I16: 1
A17: 15 | B17: Printpapier A4 (500 blaadjes) | C17: 200 | D17: 0 | E17: 0 | F17: 0 | G17: 0 | H17: 0 | I17: 1
A18: 16 | B18: Stylo’s ( groen, blauw, rood, zwart: /per stuk) | C18: 200 | D18: 0 | E18: 0 | F18: 0 | G18: 0 | H18: 0 | I18: 1
A19: 17 | B19: Nietjesmachine | C19: 10 | D19: 0 | E19: 0 | F19: 0 | G19: 0 | H19: 0 | I19: 1
A20: 18 | B20: Nietjes 1000 | C20: 50 | D20: 0 | E20: 0 | F20: 0 | G20: 0 | H20: 0 | I20: 1
A21: 19 | B21: Perforator | C21: 10 | D21: 0 | E21: 0 | F21: 0 | G21: 0 | H21: 0 | I21: 1
A22: 20 | B22: Ringmap (rug van 45 mm) | C22: 300 | D22: 0 | E22: 0 | F22: 0 | G22: 0 | H22: 0 | I22: 1
A23: 21 | B23: Klasseringsmap (rug van 8cm) | C23: 300 | D23: 0 | E23: 0 | F23: 0 | G23: 0 | H23: 0 | I23: 1
A24: 22 | B24: Printer | C24: 3 | D24: 0 | E24: 0 | F24: 0 | G24: 0 | H24: 0 | I24: 1
A25: 23 | B25: Inkt (zwart 1000pg en kleur 825pg) | C25: 100 | D25: 0 | E25: 0 | F25: 0 | G25: 0 | H25: 0 | I25: 1
A26: 24 | B26: Rekenmachine | C26: 10 | D26: 0 | E26: 0 | F26: 0 | G26: 0 | H26: 0 | I26: 1
A27: 25 | B27: Vaste telefoon met snoer | C27: 10 | D27: 0 | E27: 0 | F27: 0 | G27: 0 | H27: 0 | I27: 1
A28: 26 | B28: Papiermand | C28: 50 | D28: 0 | E28: 0 | F28: 0 | G28: 0 | H28: 0 | I28: 1
A29: 27 | B29: Bureauonderlegger 52*65 cm | C29: 50 | D29: 0 | E29: 0 | F29: 0 | G29: 0 | H29: 0 | I29: 1
A30: 28 | B30: Postbakje | C30: 300 | D30: 0 | E30: 0 | F30: 0 | G30: 0 | H30: 0 | I30: 1
A31: 29 | B31: Planningsbord | C31: 3 | D31: 0 | E31: 0 | F31: 0 | G31: 0 | H31: 0 | I31: 1
A32: 30 | B32: Agenda | C32: 100 | D32: 0 | E32: 0 | F32: 0 | G32: 0 | H32: 0 | I32: 1
A33: 31 | B33: Stempel | C33: 20 | D33: 0 | E33: 0 | F33: 0 | G33: 0 | H33: 0 | I33: 1
A34: 32 | B34: Enveloppes (50 stuks) | C34: 200 | D34: 0 | E34: 0 | F34: 0 | G34: 0 | H34: 0 | I34: 1
A35: 33 | B35: Alcoholstiften (zwart) | C35: 100 | D35: 0 | E35: 0 | F35: 0 | G35: 0 | H35: 0 | I35: 1
A36: 34 | B36: Etiketten ( 100 bladzijden met 24 etiketten per blad) | C36: 100 | D36: 0 | E36: 0 | F36: 0 | G36: 0 | H36: 0 | I36: 1
A37: 35 | B37: Cursusblok (100 bladzijden) | C37: 200 | D37: 0 | E37: 0 | F37: 0 | G37: 0 | H37: 0 | I37: 1
A38: 36 | B38: Fotopapier A4 (100 bladzijden) | C38: 100 | D38: 0 | E38: 0 | F38: 0 | G38: 0 | H38: 0 | I38: 1
A39: 37 | B39: Markeringsstiften (blauw, geel, oranje, groen, roze) | C39: 200 | D39: 0 | E39: 0 | F39: 0 | G39: 0 | H39: 0 | I39: 1
A40: 38 | B40: post-it geel (450 blaadjes) | C40: 100 | D40: 0 | E40: 0 | F40: 0 | G40: 0 | H40: 0 | I40: 1
A41: 39 | B41: correctiemiddel | C41: 100 | D41: 0 | E41: 0 | F41: 0 | G41: 0 | H41: 0 | I41: 1
A42: 40 | B42: Alcoholstift (kleur) | C42: 100 | D42: 0 | E42: 0 | F42: 0 | G42: 0 | H42: 0 | I42: 1
A43: 41 | D43: (blanco lijn nodig voor factur uit)

Sheet Producten
A2: Nr. | B2: Producten | C2: Aankoopprijs | D2: Verkoopprijs/stuk
A3: 1 | B3: Bureaustoel ST (standaard stoel) | C3: =$D3/3 -> 33.33 | D3: 99.99
A4: 2 | B4: Bureaustoel SU (super kwalitatief) | C4: =$D4/3 -> 63.33 | D4: 189.99
A5: 3 | B5: Bureautafel STK (standaard kwaliteit bureau klein) | C5: 19.66333333 | D5: 58.99
A6: 4 | B6: Bureautafel STG (standaard kwaliteit bureau groot) | C6: 36.66333333 | D6: 109.99
A7: 5 | B7: Bureautafel STN (standaard kwaliteit bureau normaal) | C7: 49.99666667 | D7: 149.99
A8: 6 | B8: Bureautafel SUK (super kwalitatief klein, 2 gaten voor oplaadbedrading, 2 kastjes, 2 lades) | C8: 63.52333333 | D8: 190.57
A9: 7 | B9: Bureautafel SUN (super kwalitatief normaal, 3 gaten voor oplaadbedrading, 4 kastjes, 4 lades) | C9: 120.23 | D9: 360.69
A10: 8 | B10: Bureautafel SUG (super kwalitatief groot, 4 gaten voor oplaadbedrading, 5 kastjes, 5 lades) | C10: 173.33 | D10: 519.99
A11: 9 | B11: Archiefkast K (klein) (hoogte: 103 cm) | C11: 128.9366667 | D11: 386.81
A12: 10 | B12: Archiefkast N (normaal) (hoogte 150cm) | C12: 136.7866667 | D12: 410.36
A13: 11 | B13: Archiefkast G (groot) (hoogte 198 cm) | C13: 149.2433333 | D13: 447.73
A14: 12 | B14: Sorteersysteem K (klein) (4 vakjes) | C14: 2.986666667 | D14: 8.96
A15: 13 | B15: Sorteersysteem N (normaal) (8 vakjes) | C15: 5.776666667 | D15: 17.33
A16: 14 | B16: Sorteersysteem G (groot) (24 vakken) | C16: 33.72666667 | D16: 101.18
A17: 15 | B17: Printpapier A4 (500 blaadjes) | C17: 2.486666667 | D17: 7.46
A18: 16 | B18: Stylo’s ( groen, blauw, rood, zwart: /per stuk) | C18: 0.1133333333 | D18: 0.34
A19: 17 | B19: Nietjesmachine | C19: 6.66 | D19: 19.98
A20: 18 | B20: Nietjes 1000 | C20: 0.1 | D20: 0.3
A21: 19 | B21: Perforator | C21: 2.306666667 | D21: 6.92
A22: 20 | B22: Ringmap (rug van 45 mm) | C22: 0.8133333333 | D22: 2.44
A23: 21 | B23: Klasseringsmap (rug van 8cm) | C23: 0.4133333333 | D23: 1.24
A24: 22 | B24: Printer | C24: 35.66333333 | D24: 106.99
A25: 23 | B25: Inkt (zwart 1000pg en kleur 825pg) | C25: 21.49333333 | D25: 64.48
A26: 24 | B26: Rekenmachine | C26: 1.663333333 | D26: 4.99
A27: 25 | B27: Vaste telefoon met snoer | C27: 6.666666667 | D27: 20
A28: 26 | B28: Papiermand | C28: 1.096666667 | D28: 3.29
A29: 27 | B29: Bureauonderlegger 52*65 cm | C29: 3.006666667 | D29: 9.02
A30: 28 | B30: Postbakje | C30: 0.57 | D30: 1.71
A31: 29 | B31: Planningsbord | C31: 46.36666667 | D31: 139.1
A32: 30 | B32: Agenda | C32: 1.03 | D32: 3.09
A33: 31 | B33: Stempel | C33: 2.193333333 | D33: 6.58
A34: 32 | B34: Enveloppes (50 stuks) | C34: 0.48 | D34: 1.44
A35: 33 | B35: Alcoholstiften (zwart) | C35: 0.4633333333 | D35: 1.39
A36: 34 | B36: Etiketten ( 100 bladzijden met 24 etiketten per blad) | C36: 2.83 | D36: 8.49
A37: 35 | B37: Cursusblok (100 bladzijden) | C37: 0.32 | D37: 0.96
A38: 36 | B38: Fotopapier A4 (100 bladzijden) | C38: 4.76 | D38: 14.28
A39: 37 | B39: Markeringsstiften (blauw, geel, oranje, groen, roze) | C39: 0.09666666667 | D39: 0.29
A40: 38 | B40: post-it geel (450 blaadjes) | C40: 2.246666667 | D40: 6.74
A41: 39 | B41: correctiemiddel | C41: 0.4966666667 | D41: 1.49
A42: 40 | B42: Alcoholstift (kleur) | C42: 0.4633333333 | D42: 1.39
A43: 41 | B43: Bureaustoel ST (standaard stoel) | C43: =$D43/3 -> -17.61746154 | D43: -52.85238462 | E43: (blanco lijn nodig voor factur uit)

Sheet Werknemers
A2: Werknemers:
A4: Werknemer Naam | B4: Adres | C4: Gemeente | D4: Postcode | E4: Telefoon
A5: Siebe Noppe | B5: Kappel Milanendreef 28 | C5: Zwevegem | D5: 8550 | E5: 04/790.45.507
A6: Michaël Desmet | B6: Hinnestraat 19G | C6: Zwevegem | D6: 8550 | E6: 04/928.43.170
A7: Robbie Vanmeerhaeghe | B7: Meiweg 39 | C7: Zwevegem | D7: 8550 | E7: 04/980.52.833

Sheet Grafieken
